fUSD/lending_fUSD_20251109
["ID","MTS","AMOUNT","RATE_DAILY","PERIOD"]
[393442409,1762659044665,-500.0,0.00017999,2]
[393442410,1762659044675,-500.0,0.00017999,2]
[393442411,1762659044686,-436.90186001,0.00017999,2]
[393442412,1762659044696,-500.0,0.00017999,2]
[393442413,1762659044706,-500.0,0.00017999,2]
[393442414,1762659044717,-500.0,0.00017999,2]
[393442415,1762659044727,-500.0,0.00017999,2]
[393442416,1762659044738,-500.0,0.00017999,2]
[393442417,1762659044748,-500.0,0.00017999,2]
[393442418,1762659044759,-500.0,0.00017999,2]
[393442419,1762659044770,-351.64669004,0.00017999,2]
[393442420,1762659044965,-307.54098138,0.00017999,2]
[393442421,1762659044980,-300.0,0.00017999,2]
[393442422,1762659044990,-2600352.75024448,0.00018,2]
[393442423,1762659045000,-430742.61390945,0.00018,2]
[393442424,1762659045314,500.0,0.00039167,120]
[393442425,1762659045377,550.62118478,0.00039167,120]
[393442426,1762659045443,500.0,0.00039167,120]
[393442427,1762659045505,523.95682413,0.00039167,120]
[393442428,1762659045525,-183.765518,0.00017961,2]
[393442429,1762659045536,-1124.14326447,0.00018,2]
[393442430,1762659045554,-352.68655211,0.00018,2]
[393442431,1762659045651,620.36,0.00039167,120]
[393442432,1762659046053,500.0,0.00039167,120]
[393442433,1762659046222,440.41749885,0.00039167,120]
[393442434,1762659046886,-1043.12833964,0.00017235,2]
[393442435,1762659046995,-282.35000244,0.00017235,2]
[393442439,1762659047460,500.0,0.00039167,120]
[393442440,1762659047718,471.84614089,0.00039167,120]
[393442441,1762659049664,500.0,0.00039167,120]
[393442442,1762659049717,500.0,0.00039167,120]
[393442443,1762659049930,474.89056849,0.00039167,120]
[393442444,1762659049980,508.69880728,0.00039167,120]
[393442445,1762659051737,500.0,0.00039167,120]
[393442446,1762659051974,488.32227961,0.00039167,120]
[393442447,1762659053779,500.0,0.00039167,120]
[393442448,1762659054052,449.82756442,0.00039167,120]
[393442449,1762659056123,500.0,0.00039167,120]
[393442450,1762659056439,579.32209144,0.00039167,120]
[393442451,1762659057713,500.0,0.00039167,120]
[393442452,1762659057941,497.94993934,0.00039167,120]
[393442453,1762659057989,481.97583377,0.00039167,120]
[393442454,1762659063320,515.33247007,0.00039167,120]
[393442455,1762659063796,561.52609802,0.00039167,120]
[393442456,1762659066802,500.0,0.00039167,120]
[393442457,1762659067055,482.64964013,0.00039167,120]
[393442458,1762659068274,568.69934518,0.00039167,120]
[393442459,1762659071608,505.29926625,0.00039167,120]
[393442460,1762659072994,558.29236717,0.00039167,120]
[393442461,1762659077027,500.0,0.00039167,120]
[393442462,1762659077250,591.93660026,0.00039167,120]
[393442463,1762659077299,537.08454355,0.00039167,120]
[393442464,1762659079166,500.0,0.00039167,120]
[393442465,1762659079293,510.72698093,0.00039167,120]
[393442466,1762659079415,485.46811664,0.00039167,120]
[393442467,1762659083050,505.59610913,0.00039167,120]
[393442468,1762659086068,482.30048181,0.00039167,120]
[393442469,1762659089629,631.66020378,0.00039167,120]
[393442470,1762659095535,479.92189789,0.00039167,120]
[393442471,1762659099207,612.32395334,0.00039167,120]
[393442472,1762659103802,576.81170852,0.00039167,120]
[393442473,1762659104182,613.17126325,0.00039167,120]
[393442474,1762659105642,612.13673145,0.00039167,120]
[393442475,1762659106157,521.52984913,0.00039167,120]
[393442476,1762659108477,460.0,0.00039167,120]
[393442477,1762659110347,501.66570561,0.00039167,120]
[393442478,1762659114107,582.54270073,0.00039167,120]
[393442479,1762659114158,540.37647446,0.00039167,120]
[393442480,1762659115411,634.53778768,0.00039167,120]
[393442481,1762659116216,589.60700628,0.00039167,120]
[393442482,1762659117843,498.17220414,0.00039167,120]
[393442483,1762659119866,460.0,0.00039167,120]
[393442484,1762659122710,617.12950472,0.00039167,120]
[393442485,1762659123617,558.31541015,0.00039167,120]
[393442486,1762659127246,591.42784219,0.00039167,120]
[393442487,1762659130753,596.48574276,0.00039167,120]
[393442488,1762659132039,500.59280277,0.00039167,120]
[393442489,1762659132921,621.60210985,0.00039167,120]
[393442490,1762659135653,460.0,0.00039167,120]
[393442491,1762659137775,616.36155849,0.00039167,120]
[393442492,1762659140777,460.0,0.00039167,120]
[393442493,1762659142569,511.81101204,0.00039167,120]
[393442494,1762659142808,607.57702694,0.00039167,120]
[393442495,1762659144419,637.99180956,0.00039167,120]
[393442496,1762659144726,586.85510558,0.00039167,120]
[393442497,1762659151766,468.04708412,0.00039167,120]
[393442498,1762659153589,521.04742195,0.00039167,120]
[393442499,1762659155067,490.12965502,0.00039167,120]
[393442500,1762659155924,643.13534322,0.00039167,120]
[393442501,1762659159965,516.02551068,0.00039167,120]
[393442502,1762659163837,10000.01,0.00016522,2]
[393442503,1762659163861,10000.01,0.00016522,2]
[393442504,1762659163885,10000.01,0.00016522,2]
[393442505,1762659163908,10000.01,0.00016522,2]
[393442506,1762659163933,10000.01,0.00016522,2]
[393442507,1762659163955,10000.01,0.00016522,2]
[393442508,1762659163979,10000.01,0.00016522,2]
[393442509,1762659164001,10000.01,0.00016522,2]
[393442510,1762659164025,10000.01,0.00016522,2]
[393442511,1762659164049,10000.01,0.00016522,2]
[393442512,1762659165307,420.37921422,0.00039167,120]
[393442513,1762659174135,468.12792402,0.00039167,120]
[393442514,1762659183001,-300.0,0.00016521,2]
[393442515,1762659183034,-300.0,0.00016521,2]
[393442516,1762659183907,-5205.20007905,0.00016522,2]
[393442517,1762659183953,580.1470321,0.00039167,120]
[393442518,1762659183991,-10000.01,0.00016522,2]
[393442519,1762659185950,-250.0,0.00016521,2]
[393442520,1762659185984,-9500.01,0.00016522,2]
[393442521,1762659186058,-10000.01,0.00016522,2]
[393442522,1762659186161,-10000.01,0.00016522,2]
[393442523,1762659186333,-10000.01,0.00016522,2]
[393442524,1762659186446,-10000.01,0.00016522,2]
[393442525,1762659186593,-10000.01,0.00016522,2]
[393442526,1762659186701,-10000.01,0.00016522,2]
[393442527,1762659186820,-10000.01,0.00016522,2]
[393442528,1762659194984,-10000.01,0.00016522,2]
[393442529,1762659198294,-10000.01,0.00016522,2]
[393442530,1762659198517,-10000.01,0.00016522,2]
[393442531,1762659198676,-10000.01,0.00016522,2]
[393442532,1762659198798,-10000.01,0.00016522,2]
[393442533,1762659198913,-10000.01,0.00016522,2]
[393442534,1762659199028,-10000.01,0.00016522,2]
[393442535,1762659204085,-10000.01,0.00016522,2]
[393442536,1762659204216,-2275.72867905,0.00016522,2]
[393442537,1762659204251,-5448.5526419,0.00016522,2]
[393442538,1762659222244,482.57471572,0.00039167,120]
[393442539,1762659239939,500.0,0.00039167,120]
[393442540,1762659240257,500.0,0.00039167,120]
[393442541,1762659240493,500.0,0.00039167,120]
[393442542,1762659240808,500.0,0.00039167,120]
[393442543,1762659241046,500.0,0.00039167,120]
[393442544,1762659241275,500.0,0.00039167,120]
[393442545,1762659241507,500.0,0.00039167,120]
[393442546,1762659241923,500.0,0.00039167,120]
[393442547,1762659241970,500.0,0.00039167,120]
[393442548,1762659242618,500.0,0.00039167,120]
[393442549,1762659242866,500.0,0.00039167,120]
[393442550,1762659243107,500.0,0.00039167,120]
[393442551,1762659243363,470.63856936,0.00039167,120]
[393442552,1762659246785,587.77435005,0.00039167,120]
[393442553,1762659250323,467.66093684,0.00039167,120]
[393442554,1762659257503,569.65802009,0.00039167,120]
[393442555,1762659268966,500.0,0.00039167,120]
[393442556,1762659269212,500.0,0.00039167,120]
[393442557,1762659269475,500.0,0.00039167,120]
[393442558,1762659269723,500.0,0.00039167,120]
[393442559,1762659269969,500.0,0.00039167,120]
[393442560,1762659270218,500.0,0.00039167,120]
[393442561,1762659270518,500.0,0.00039167,120]
[393442562,1762659270726,500.0,0.00039167,120]
[393442563,1762659270972,500.0,0.00039167,120]
[393442564,1762659271216,500.0,0.00039167,120]
[393442565,1762659271570,500.0,0.00039167,120]
[393442566,1762659271859,500.0,0.00039167,120]
[393442567,1762659271956,500.0,0.00039167,120]
[393442568,1762659272197,500.0,0.00039167,120]
[393442569,1762659272472,500.0,0.00039167,120]
[393442570,1762659272840,500.0,0.00039167,120]
[393442571,1762659272960,500.0,0.00039167,120]
[393442572,1762659273201,500.0,0.00039167,120]
[393442573,1762659273468,500.0,0.00039167,120]
[393442574,1762659273756,500.0,0.00039167,120]
[393442575,1762659274226,500.0,0.00039167,120]
[393442576,1762659274463,480.00406269,0.00039167,120]
[393442577,1762659274513,500.0,0.00039167,120]
[393442578,1762659275467,293.03510407,0.00039167,120]
[393442579,1762659280684,540.00300372,0.00039167,120]
[393442580,1762659300198,500.0,0.00039167,120]
[393442581,1762659300510,420.0,0.00039167,120]
[393442582,1762659301707,500.0,0.00039167,120]
[393442583,1762659301956,500.0,0.00039167,120]
[393442584,1762659302211,500.0,0.00039167,120]
[393442585,1762659302454,500.0,0.00039167,120]
[393442586,1762659302718,500.0,0.00039167,120]
[393442587,1762659302963,500.0,0.00039167,120]
[393442588,1762659303228,500.0,0.00039167,120]
[393442589,1762659303475,500.0,0.00039167,120]
[393442590,1762659303938,500.0,0.00039167,120]
[393442591,1762659304054,500.0,0.00039167,120]
[393442592,1762659304313,161.01772726,0.00039167,120]
[393442593,1762659343570,460.0,0.00039167,120]
[393442594,1762659346925,476.39776395,0.00039167,120]
[393442595,1762659353381,266.41363676,0.00039167,120]
[393442596,1762659364367,484.3774366,0.00039167,120]
[393442597,1762659366208,502.14525829,0.00039167,120]
[393442598,1762659376227,510.6307393,0.00039167,120]
[393442599,1762659383980,479.15798599,0.00039167,120]
[393442600,1762659387266,220.0,0.00039167,120]
[393442601,1762659392774,460.0,0.00039167,120]
[393442602,1762659396039,223.05,0.00025005,120]
[393442603,1762659397565,496.26205736,0.00039167,120]
[393442604,1762659400811,519.9540555,0.00039167,120]
[393442605,1762659402807,553.36628653,0.00039167,120]
[393442606,1762659405196,567.55205181,0.00039167,120]
[393442607,1762659413102,483.64597361,0.00039167,120]
[393442608,1762659415385,480.43358785,0.00039167,120]
[393442609,1762659416653,480.94888541,0.00039167,120]
[393442610,1762659418872,480.62376217,0.00039167,120]
[393442611,1762659424301,507.19354585,0.00039167,120]
[393442612,1762659429754,476.82337471,0.00039167,120]
[393442613,1762659432070,500.0,0.00039167,120]
[393442614,1762659432294,500.0,0.00039167,120]
[393442615,1762659432710,500.0,0.00039167,120]
[393442616,1762659432970,500.0,0.00039167,120]
[393442617,1762659433211,500.0,0.00039167,120]
[393442618,1762659433450,500.0,0.00039167,120]
[393442619,1762659433688,255.58645299,0.00039167,120]
[393442620,1762659434253,323.95555361,0.00039167,120]
[393442621,1762659441374,-223.05,0.0001667,2]
[393442622,1762659441395,-300.0,0.00016737,2]
[393442623,1762659441419,-333.0,0.00016804,2]
[393442624,1762659441440,-150.0,0.00016825,2]
[393442625,1762659441461,-300.0,0.00016845,2]
[393442626,1762659441483,-2500.0,0.00016886,2]
[393442627,1762659441509,-333.0,0.00016917,2]
[393442628,1762659441531,-300.0,0.00016985,2]
[393442629,1762659441552,-1200.0,0.00016985,2]
[393442630,1762659441573,-300.0,0.00016985,2]
[393442631,1762659441595,-300.0,0.00016985,2]
[393442632,1762659441616,-170.51529411,0.00016986,2]
[393442633,1762659444021,-166.66,0.00016986,2]
[393442634,1762659445496,-162.82470589,0.00016986,2]
[393442635,1762659445519,-69.7963123,0.00016986,2]
[393442636,1762659447431,286.22153829,0.00039167,120]
[393442637,1762659451012,507.26225743,0.00039167,120]
[393442638,1762659451843,-379.07079502,0.00016986,2]
[393442639,1762659453853,-51.13289268,0.00016986,2]
[393442640,1762659453875,-327.93790234,0.00016986,2]
[393442641,1762659466732,-169.88159741,0.00016986,2]
[393442642,1762659468813,-2.18050025,0.00016986,2]
[393442643,1762659468842,-183.21754022,0.00016986,2]
[393442644,1762659471601,-181.42577871,0.00016986,2]
[393442645,1762659477192,-135.35668107,0.00016986,2]
[393442646,1762659477214,-125.65901996,0.00016986,2]
[393442647,1762659479513,-201.14308899,0.00016986,2]
[393442648,1762659479536,-50.62938509,0.00017048,2]
[393442649,1762659484838,537.73156736,0.00039167,120]
[393442650,1762659484865,-151.0,0.00017048,2]
[393442651,1762659496157,-278.22802196,0.00017084,2]
[393442652,1762659500565,-74.17009105,0.00017084,2]
[393442653,1762659500588,-84.2516948,0.0001712,2]
[393442654,1762659502659,-226.2783052,0.0001712,2]
[393442655,1762659502682,-34.04227564,0.00017124,2]
[393442656,1762659502779,-161.57772436,0.00017124,2]
[393442657,1762659502805,-98.74285648,0.00017235,2]
[393442658,1762659511664,-224.4004772,0.00017235,2]
[393442659,1762659513177,-319.24702903,0.00017235,2]
[393442660,1762659514820,-174.13129521,0.00017235,2]
[393442661,1762659514847,-47.83785971,0.00017352,2]
[393442662,1762659516871,-285.16214029,0.00017352,2]
[393442663,1762659516895,-150.0,0.000174,2]
[393442664,1762659516918,-123.32881221,0.000174,2]
[393442665,1762659517128,473.15155806,0.00039167,120]
[393442666,1762659518334,-26.67118779,0.000174,2]
[393442667,1762659518357,-166.67,0.00017522,2]
[393442668,1762659518385,-15.37159775,0.00017551,2]
[393442669,1762659519506,-208.71278554,0.00017551,2]
[393442670,1762659526167,-167.05193794,0.00016972,2]
[393442671,1762659526373,-5.89690454,0.00017551,2]
[393442672,1762659533497,-103.01871217,0.00017551,2]
[393442673,1762659533523,-99.81130928,0.000176,2]
[393442674,1762659534419,479.49553322,0.00039167,120]
[393442675,1762659535554,-50.81869072,0.000176,2]
[393442676,1762659535576,-103.67109893,0.00017617,2]
[393442677,1762659538304,150.0,0.00039167,120]
[393442678,1762659538866,239.10539847,0.00039167,120]
[393442679,1762659540313,-104.42035334,0.00017617,2]
[393442680,1762659540335,-158.80163917,0.00017621,2]
[393442681,1762659540381,-263.22199251,0.00017621,2]
[393442682,1762659558261,-257.68869896,0.00016986,2]
[393442683,1762659564469,-194.99732046,0.00016986,2]
[393442684,1762659564506,-47.31398058,0.00016986,2]
[393442685,1762659564529,-147.68333988,0.00017621,2]
[393442686,1762659568491,-183.00963422,0.00017621,2]
[393442687,1762659576262,-166.66,0.00017621,2]
[393442688,1762659580854,-151.0,0.00017621,2]
[393442689,1762659581426,-129.62339422,0.00017621,2]
[393442690,1762659581448,-21.37660578,0.00017621,2]
[393442691,1762659588215,-271.26665583,0.00017621,2]
[393442692,1762659588242,-22.60497567,0.00017621,2]
[393442693,1762659590202,-172.39502433,0.00017621,2]
[393442694,1762659590224,-128.37083911,0.00017622,2]
[393442695,1762659601339,-151.0,0.00016972,2]
[393442696,1762659603902,-307.1669507,0.00016972,2]
[393442697,1762659606075,-41.8330493,0.00016972,2]
[393442698,1762659606102,-328.64874322,0.00017121,2]
[393442699,1762659606793,-171.35125678,0.00017121,2]
[393442700,1762659606818,-199.13053574,0.00017528,2]
[393442701,1762659616265,-203.24285785,0.00017528,2]
[393442702,1762659618316,-97.62660641,0.00017528,2]
[393442703,1762659618339,-53.37339359,0.00017622,2]
[393442704,1762659619958,-210.61792544,0.00016972,2]
[393442705,1762659622955,-167.34996442,0.00016972,2]
[393442706,1762659624505,-122.03211014,0.00016972,2]
[393442707,1762659624527,-137.22001368,0.00017121,2]
[393442708,1762659630829,-151.0,0.00017121,2]
[393442709,1762659632361,-211.77998632,0.00017121,2]
[393442710,1762659632386,-56.60207788,0.00017528,2]
[393442711,1762659636169,-300.0,0.00017528,2]
[393442712,1762659636266,-143.39792212,0.00017528,2]
[393442713,1762659636290,-156.60207788,0.00017622,2]
[393442714,1762659646665,-251.5575353,0.00017622,2]
[393442715,1762659652261,-203.62329649,0.00017622,2]
[393442716,1762659652327,-203.62329649,0.00017622,2]
[393442717,1762659654397,1000.0,0.00013699,2]
[393442718,1762659654671,1000.0,0.00013699,2]
[393442719,1762659654946,1000.0,0.00013699,2]
[393442720,1762659655223,1000.0,0.00013699,2]
[393442721,1762659655502,1000.0,0.00013699,2]
[393442722,1762659655752,1000.0,0.00013699,2]
[393442723,1762659656131,1000.0,0.00013699,2]
[393442724,1762659656410,1000.0,0.00013699,2]
[393442725,1762659656785,1000.0,0.00013699,2]
[393442726,1762659657224,1000.0,0.00013699,2]
[393442727,1762659661756,-359.9096291,0.00017622,2]
[393442728,1762659663814,-747.08911296,0.00017622,2]
[393442729,1762659669200,-599.43734799,0.00017622,2]
[393442730,1762659669270,-599.43734799,0.00017622,2]
[393442731,1762659680739,150.0,0.00016816,120]
[393442732,1762659724022,500.0,0.00039159,120]
[393442733,1762659724272,386.21632906,0.00039159,120]
[393442881,1762660162678,0.01,0.00016,2]
[393442882,1762660162700,159.99,0.00016,2]
[393442883,1762660173956,-150.0,0.00016816,2]
[393442884,1762660173981,-8.02176129,0.00016901,2]
[393442885,1762660219076,-186.97823871,0.00016901,2]
[393442886,1762660219099,-8.02176129,0.00016943,2]
[393442887,1762660231440,-291.97823871,0.00016943,2]
[393442888,1762660231451,-264.12985275,0.00016986,2]
[393442889,1762660231586,-235.87014725,0.00016986,2]
[393442890,1762660231596,-681.0,0.00017035,2]
[393442891,1762660231606,-195.0,0.00017106,2]
[393442892,1762660231620,-1057.38871558,0.00017173,2]
[393442893,1762660231630,-500.0,0.000172,6]
[393442894,1762660231639,-1209.0,0.00017212,2]
[393442895,1762660231649,-150.0,0.000173,2]
[393442896,1762660231659,-1000.0,0.000173,6]
[393442897,1762660231668,-500.0,0.00017344,2]
[393442898,1762660231678,-1200.0,0.00017399,2]
[393442899,1762660231687,-169.11,0.000174,2]
[393442900,1762660231697,-169.11,0.000174,2]
[393442901,1762660231707,-1600.0,0.000174,6]
[393442902,1762660231716,-300.0,0.00017438,2]
[393442903,1762660231726,-300.0,0.00017438,2]
[393442904,1762660231735,-259.0,0.00017439,2]
[393442905,1762660231753,-1213.1331873,0.0001744,2]
[393442906,1762660231765,-1115.8686386,0.0001744,2]
[393442907,1762660231775,-1175.7525134,0.0001744,2]
[393442908,1762660231784,-23171.78382,0.0001744,2]
[393442909,1762660231794,-3492.0251819,0.0001744,2]
[393442910,1762660231804,-1209.0,0.00017466,2]
[393442911,1762660231814,-469.89,0.0001749,2]
[393442912,1762660231823,-169.11,0.000175,2]
[393442913,1762660231833,-169.11,0.000175,2]
[393442914,1762660231843,-169.11,0.000175,2]
[393442915,1762660231852,-2100.0,0.000175,6]
[393442916,1762660231862,-625.21960734,0.00017559,2]
[393442917,1762660231871,-500.0,0.00017565,2]
[393442919,1762660231882,-2700.0,0.000176,6]
[393442920,1762660231891,-6078.82232817,0.00017605,2]
[393442922,1762660231901,-1726.84557519,0.00017659,2]
[393442924,1762660231914,-520.47304342,0.00017663,2]
[393442926,1762660231923,-520.47304342,0.00017663,2]
[393442928,1762660231932,-520.47304342,0.00017663,2]
[393442929,1762660231941,-520.47304342,0.00017663,2]
[393442932,1762660231953,-520.47304342,0.00017663,2]
[393442934,1762660231962,-520.47304342,0.00017663,2]
[393442936,1762660231972,-520.47304342,0.00017663,2]
[393442938,1762660231983,-520.47304342,0.00017663,2]
[393442939,1762660231993,-520.47304342,0.00017663,2]
[393442941,1762660232003,-520.47304342,0.00017663,2]
[393442943,1762660232013,-520.47304342,0.00017663,2]
[393442963,1762660232216,-520.47304342,0.00017663,2]
[393442965,1762660232227,-520.47304342,0.00017663,2]
[393442967,1762660232236,-520.47304342,0.00017663,2]
[393442969,1762660232250,-520.47304342,0.00017663,2]
[393442971,1762660232260,-520.47304342,0.00017663,2]
[393442972,1762660232269,-520.47304342,0.00017663,2]
[393442974,1762660232279,-520.47304342,0.00017663,2]
[393442976,1762660232288,-520.47304342,0.00017663,2]
[393442977,1762660232298,-520.47304342,0.00017663,2]
[393442978,1762660232308,-520.47304342,0.00017663,2]
[393442979,1762660232318,-520.47304342,0.00017663,2]
[393442980,1762660232328,-520.47304342,0.00017663,2]
[393442981,1762660232337,-520.47304342,0.00017663,2]
[393442982,1762660232347,-520.47304342,0.00017663,2]
[393442983,1762660232356,-520.47304342,0.00017663,2]
[393442984,1762660232366,-520.47304342,0.00017663,2]
[393442985,1762660232375,-520.47304342,0.00017663,2]
[393442986,1762660232385,-520.47304342,0.00017663,2]
[393442987,1762660232395,-520.47304342,0.00017663,2]
[393442988,1762660232405,-520.47304342,0.00017663,2]
[393442989,1762660232415,-520.47304342,0.00017663,2]
[393442990,1762660232424,-520.47304342,0.00017663,2]
[393442991,1762660232434,-520.47304342,0.00017663,2]
[393442992,1762660232444,-520.47304342,0.00017663,2]
[393442993,1762660232454,-520.47304342,0.00017663,2]
[393442994,1762660232463,-520.47304342,0.00017663,2]
[393442995,1762660232473,-520.47304342,0.00017663,2]
[393442996,1762660232483,-520.47304342,0.00017663,2]
[393442997,1762660232492,-520.47304342,0.00017663,2]
[393442998,1762660232502,-520.47304342,0.00017663,2]
[393442999,1762660232511,-520.47304342,0.00017663,2]
[393443000,1762660232522,-520.47304342,0.00017663,2]
[393443001,1762660232532,-520.47304342,0.00017663,2]
[393443002,1762660232547,-520.47304342,0.00017663,2]
[393443003,1762660232557,-520.47304342,0.00017663,2]
[393443004,1762660232566,-520.47304342,0.00017663,2]
[393443005,1762660232575,-520.47304342,0.00017663,2]
[393443006,1762660232585,-520.47304342,0.00017663,2]
[393443007,1762660232594,-520.47304342,0.00017663,2]
[393443008,1762660232603,-520.47304342,0.00017663,2]
[393443009,1762660232611,-520.47304342,0.00017663,2]
[393443010,1762660232621,-520.47304342,0.00017663,2]
[393443011,1762660232630,-520.47304342,0.00017663,2]
[393443012,1762660232639,-520.47304342,0.00017663,2]
[393443013,1762660232648,-520.47304342,0.00017663,2]
[393443014,1762660232657,-520.47304342,0.00017663,2]
[393443015,1762660232667,-520.47304342,0.00017663,2]
[393443016,1762660232676,-695.38588868,0.00017663,2]
[393443017,1762660232685,-695.38588868,0.00017663,2]
[393443018,1762660232696,-695.38588868,0.00017663,2]
[393443019,1762660232706,-695.38588868,0.00017663,2]
[393443020,1762660232715,-695.38588868,0.00017663,2]
[393443021,1762660232724,-695.38588868,0.00017663,2]
[393443022,1762660232733,-695.38588868,0.00017663,2]
[393443023,1762660232742,-695.38588868,0.00017663,2]
[393443024,1762660232751,-695.38588868,0.00017663,2]
[393443025,1762660232761,-695.38588868,0.00017663,2]
[393443026,1762660232771,-695.38588868,0.00017663,2]
[393443027,1762660232780,-695.38588868,0.00017663,2]
[393443028,1762660232790,-695.38588868,0.00017663,2]
[393443029,1762660232803,-695.38588868,0.00017663,2]
[393443030,1762660232812,-695.38588868,0.00017663,2]
[393443031,1762660232822,-695.38588868,0.00017663,2]
[393443032,1762660232833,-695.38588868,0.00017663,2]
[393443033,1762660232843,-695.38588868,0.00017663,2]
[393443034,1762660232854,-695.38588868,0.00017663,2]
[393443035,1762660232864,-695.38588868,0.00017663,2]
[393443036,1762660232873,-695.38588868,0.00017663,2]
[393443037,1762660232883,-695.38588868,0.00017663,2]
[393443038,1762660232892,-695.38588868,0.00017663,2]
[393443039,1762660232902,-695.38588868,0.00017663,2]
[393443040,1762660232916,-695.38588868,0.00017663,2]
[393443041,1762660232926,-695.38588868,0.00017663,2]
[393443042,1762660232936,-695.38588868,0.00017663,2]
[393443043,1762660232947,-695.38588868,0.00017663,2]
[393443044,1762660232958,-695.38588868,0.00017663,2]
[393443045,1762660232967,-500.0,0.00017664,2]
[393443046,1762660232979,-576.362,0.00017665,2]
[393443047,1762660232989,-608.0,0.00017665,2]
[393443048,1762660232999,-3425.0,0.00017665,2]
[393443049,1762660233010,-1316.0,0.00017665,2]
[393443050,1762660233021,-820.0,0.00017665,2]
[393443051,1762660233031,-1596.0,0.00017665,2]
[393443052,1762660233041,-175.38244114,0.00017665,2]
[393443053,1762660233056,-730.61755886,0.00017665,2]
[393443054,1762660233066,-269.38244114,0.00017665,2]
[393443055,1762660233272,-919.61755886,0.00017665,2]
[393443056,1762660233282,-733.9031544,0.00017665,2]
[393443057,1762660233295,-79.0968456,0.00017665,2]
[393443058,1762660233304,-607.41337093,0.00017665,2]
[393443059,1762660233434,-665.58662907,0.00017665,2]
[393443060,1762660233444,-334.41337093,0.00017665,2]
[393443061,1762660233526,-224.58662907,0.00017665,2]
[393443062,1762660233536,-209.0,0.00017665,2]
[393443063,1762660233546,-6661.0,0.00017665,2]
[393443064,1762660233555,-1033.87283749,0.00017665,2]
[393443068,1762660237459,-574.67406239,0.00017665,2]
[393443069,1762660237513,-4891.37310012,0.00017665,2]
[393443070,1762660237522,-195.37242137,0.00017667,2]
[393443071,1762660237532,-169.04,0.00017671,2]
[393443072,1762660237541,-500.0,0.00017673,2]
[393443073,1762660237550,-150.0,0.000177,2]
[393443074,1762660237560,-1205.93,0.000177,2]
[393443075,1762660237569,-255.02,0.000177,2]
[393443076,1762660237578,-500.0,0.000177,6]
[393443077,1762660237587,-484.660239,0.00017706,3]
[393443078,1762660237597,-201.25645,0.00017706,3]
[393443079,1762660237606,-570.297092,0.00017706,3]
[393443080,1762660237616,-333.0,0.00017718,2]
[393443081,1762660237625,-333.0,0.0001772,2]
[393443082,1762660237635,-333.0,0.00017724,2]
[393443083,1762660237644,-3552.82870439,0.00017732,2]
[393443084,1762660237654,-333.0,0.00017755,2]
[393443085,1762660237664,-333.0,0.00017761,2]
[393443086,1762660237674,-500.0,0.00017777,2]
[393443088,1762660237684,-500.0,0.00017777,2]
[393443089,1762660237693,-150.0,0.000178,2]
[393443091,1762660237703,-339.12,0.000178,2]
[393443092,1762660237712,-8224.13779044,0.000178,2]
[393443093,1762660237721,-192.4850507,0.000178,2]
[393443094,1762660237731,-500.0,0.000178,6]
[393443096,1762660237741,-8224.13779044,0.00017811,2]
[393443097,1762660237750,-724.71069293,0.00017813,2]
[393443099,1762660237759,-333.0,0.00017817,2]
[393443101,1762660237917,-1607.94846359,0.00017822,2]
[393443102,1762660237931,-6616.18932685,0.00017822,2]
[393443103,1762660237941,-1213.0,0.00017826,2]